bitfinex/quotes_BTCUSD_20220111
["timestamp","ask_amount","ask_price","bid_price","bid_amount"]
[1641894530497,0.013,42088.0,42087.0,0.973085]
[1641894531297,0.013,42088.0,42087.0,0.990085]
[1641894531746,0.013,42088.0,42087.0,1.425039]
[1641894531946,0.013,42088.0,42087.0,1.420039]
[1641894533147,0.013,42088.0,42087.0,1.403039]
[1641894533346,0.013,42088.0,42087.0,1.419039]
[1641894534550,0.013,42088.0,42087.0,1.403039]
[1641894535385,0.013,42088.0,42087.0,1.418039]
[1641894535787,0.013,42088.0,42087.0,0.983085]
[1641894536588,0.013,42088.0,42087.0,0.968085]
[1641894537186,0.013,42088.0,42087.0,0.983085]
[1641894538588,0.013,42088.0,42087.0,0.968085]
[1641894539242,0.013,42088.0,42087.0,0.983085]
[1641894540642,0.013,42088.0,42087.0,0.968085]
[1641894541242,0.013,42088.0,42087.0,0.9843743]
[1641894542343,0.013,42088.0,42087.0,0.983085]
[1641894542746,0.013,42088.0,42087.0,0.968085]
[1641894543394,0.013,42088.0,42087.0,0.981085]
[1641894543591,0.059386,42089.0,42087.0,1.53562696]
[1641894543791,0.0190012,42090.0,42088.0,0.373085]
[1641894543992,0.0190012,42090.0,42089.0,0.420685]
[1641894544191,0.14435639,42098.0,42089.0,0.500685]
[1641894544391,0.00072316,42095.0,42093.0,0.00124001]
[1641894544592,0.00072316,42095.0,42094.0,0.373085]
[1641894544790,0.00289244,42098.0,42095.0,0.37816682]
[1641894544791,0.059373,42097.0,42095.0,0.37816682]
[1641894544991,0.059373,42097.0,42096.0,0.059373]
[1641894545191,0.00289244,42098.0,42095.0,0.82748965]
[1641894545392,0.118743,42099.0,42096.0,0.059373]
[1641894545592,0.118743,42099.0,42096.0,0.11280745]
[1641894545997,0.118743,42099.0,42097.0,0.5]
[1641894546393,0.0792592,42100.0,42098.0,0.51766013]
[1641894546837,0.0792592,42100.0,42098.0,0.57109147]
[1641894547238,0.0792592,42100.0,42098.0,0.58009147]
[1641894548240,0.0792592,42100.0,42099.0,0.373085]
[1641894548441,0.0198882,42100.0,42099.0,0.373085]
[1641894549242,0.0198882,42100.0,42099.0,0.009]
[1641894550490,0.0198882,42100.0,42098.0,1.12109147]
[1641894550691,0.0198882,42100.0,42099.0,9.0]
[1641894550891,0.0198882,42100.0,42099.0,9.373085]
[1641894551296,0.0198882,42100.0,42099.0,9.382085]
[1641894553096,0.0198882,42100.0,42099.0,9.373085]
[1641894553294,0.0198882,42100.0,42099.0,9.383085]
[1641894553899,0.118729,42104.0,42101.0,0.373085]
[1641894554154,1.6656,42108.0,42105.0,0.053424]
[1641894554155,0.00341833,42108.0,42105.0,0.053424]
[1641894554349,0.00341833,42108.0,42106.0,0.373085]
[1641894554546,0.00341833,42108.0,42106.0,0.423085]
[1641894555047,0.059355,42108.0,42106.0,0.423085]
[1641894555248,0.059355,42108.0,42107.0,0.059357]
[1641894555448,0.059355,42108.0,42107.0,0.432442]
[1641894556051,0.059355,42108.0,42107.0,0.43371688]
[1641894556554,0.068356,42109.0,42108.0,0.46029878]
[1641894556750,0.068356,42109.0,42108.0,0.83338378]
[1641894557350,0.068356,42109.0,42108.0,0.84138378]
[1641894557551,0.068356,42109.0,42108.0,0.94138378]
[1641894557552,0.067356,42109.0,42108.0,0.94138378]
[1641894557752,0.067356,42109.0,42108.0,0.84138378]
[1641894557988,0.067356,42109.0,42108.0,0.89138378]
[1641894557989,0.008,42109.0,42108.0,0.89138378]
[1641894558589,0.008,42109.0,42108.0,0.88338378]
[1641894558988,0.48116828,42111.0,42110.0,0.26328493]
[1641894559195,0.42181628,42111.0,42110.0,0.26328493]
[1641894559391,0.42181628,42111.0,42109.0,0.26960548]
[1641894559792,0.42071403,42111.0,42109.0,0.26960548]
[1641894560192,0.00081627,42112.0,42110.0,0.34708252]
[1641894560395,0.00081627,42112.0,42111.0,0.06060269]
[1641894560594,0.00081627,42112.0,42111.0,0.10820269]
[1641894560796,0.07740117,42118.0,42115.0,0.373085]
[1641894560997,0.07413659,42118.0,42117.0,0.423085]
[1641894561194,0.07413659,42118.0,42117.0,0.75624944]
[1641894561396,0.003,42132.0,42117.0,1.05624944]
[1641894561661,0.53631682,42144.0,42117.0,1.05624944]
[1641894561662,1.0,42138.0,42135.0,0.00123957]
[1641894562248,1.0,42138.0,42135.0,0.76657883]
[1641894562449,1.00080396,42138.0,42135.0,1.16239149]
[1641894562648,1.00080396,42138.0,42135.0,1.19898283]
[1641894563249,1.00080396,42138.0,42135.0,0.73153167]
[1641894563451,1.0,42138.0,42135.0,0.74053167]
[1641894563651,1.00080396,42138.0,42136.0,0.118637]
[1641894563851,1.00080396,42138.0,42136.0,0.168637]
[1641894564253,0.373085,42137.0,42136.0,0.05]
[1641894564453,1.42987444,42138.0,42135.0,0.009]
[1641894564454,1.00080396,42138.0,42135.0,0.009]
[1641894564650,1.0,42138.0,42135.0,0.059327]
[1641894565052,0.394819,42137.0,42135.0,0.059327]
[1641894565251,0.42,42137.0,42135.0,0.059327]
[1641894565496,0.42,42137.0,42135.0,0.63849451]
[1641894565694,1.479325,42138.0,42135.0,0.68849451]
[1641894565894,1.479325,42138.0,42135.0,0.84864929]
[1641894566096,1.42080658,42138.0,42135.0,0.84864929]
[1641894566494,1.42080658,42138.0,42135.0,0.84364929]
[1641894566693,1.42080658,42138.0,42135.0,0.42626478]
[1641894567200,1.42,42138.0,42135.0,0.42626478]
[1641894567394,1.42,42138.0,42135.0,0.43126478]
[1641894568197,0.373085,42137.0,42135.0,0.16515478]
[1641894568398,1.68858752,42136.0,42135.0,0.005]
[1641894568596,2.06167252,42136.0,42134.0,0.05339011]
[1641894568796,0.76167252,42135.0,42134.0,0.05339011]
[1641894568998,0.38858752,42135.0,42134.0,0.05339011]
[1641894569443,1.4864862,42138.0,42134.0,0.05439011]
[1641894569643,0.00080589,42137.0,42135.0,0.10678662]
[1641894570041,0.00080589,42137.0,42135.0,0.15678662]
[1641894570442,0.00080589,42137.0,42136.0,0.05]
[1641894570642,1.479337,42138.0,42136.0,0.05]
[1641894570841,1.48014287,42138.0,42136.0,0.05]
[1641894571242,1.48014287,42138.0,42136.0,0.109326]
[1641894571442,1.48014287,42138.0,42136.0,0.112326]
[1641894571642,0.373085,42137.0,42136.0,0.112326]
[1641894571843,1.479337,42138.0,42136.0,0.112326]
[1641894572043,1.479337,42138.0,42136.0,0.1597875]
[1641894573190,1.479337,42138.0,42136.0,0.1567875]
[1641894573392,1.479337,42138.0,42136.0,0.1587875]
[1641894573789,1.42,42138.0,42136.0,0.1587875]
[1641894573993,1.42,42138.0,42137.0,0.59178858]
[1641894573994,0.94552137,42138.0,42137.0,0.59178858]
[1641894574392,0.94552137,42138.0,42137.0,0.373085]
[1641894574592,0.94552137,42138.0,42137.0,0.26714135]
[1641894575394,0.94552137,42138.0,42137.0,0.27314135]
[1641894575796,0.94552137,42138.0,42137.0,0.9646078]
[1641894576393,0.94552137,42138.0,42137.0,0.27314135]
[1641894576650,0.94552137,42138.0,42137.0,0.26714135]
[1641894577445,0.94552137,42138.0,42137.0,0.27414135]
[1641894577846,0.94552137,42138.0,42137.0,0.96560794]
[1641894578548,0.94552137,42138.0,42137.0,0.26714135]
[1641894579348,0.94552137,42138.0,42137.0,0.27514135]
[1641894580591,0.94552137,42138.0,42137.0,0.26714135]
[1641894581392,0.94552137,42138.0,42137.0,0.27514135]
[1641894582696,0.94552137,42138.0,42137.0,0.26714135]
[1641894583494,0.94552137,42138.0,42137.0,0.007]
[1641894584543,0.94552137,42138.0,42136.0,0.2067875]
[1641894585348,0.94552137,42138.0,42136.0,0.2137875]
[1641894586742,0.94552137,42138.0,42136.0,0.2067875]
[1641894587342,0.94552137,42138.0,42136.0,0.2137875]
[1641894588591,0.94552137,42138.0,42136.0,0.2067875]
[1641894589391,0.94552137,42138.0,42136.0,0.2127875]
[1641894590595,0.3118814,42137.0,42136.0,0.2127875]
[1641894590794,0.94552137,42138.0,42136.0,0.2127875]
[1641894591393,0.312428,42137.0,42136.0,0.2117875]
[1641894591659,0.312428,42137.0,42136.0,0.005]
[1641894591660,0.733113,42137.0,42136.0,0.005]
[1641894591851,1.1206054,42137.0,42136.0,0.005]
[1641894592651,1.4039054,42137.0,42124.0,0.5]
[1641894592850,0.373085,42136.0,42124.0,0.5]
[1641894593052,0.10123445,42134.0,42124.0,0.5]
[1641894593256,0.80927252,42133.0,42124.0,0.5]
[1641894593451,0.80927252,42133.0,42126.0,0.059338]
[1641894593653,0.46389955,42130.0,42126.0,0.059338]
[1641894593850,0.0476,42129.0,42126.0,0.059338]
[1641894594253,0.0476,42129.0,42127.0,0.053405]
[1641894594652,0.0476,42129.0,42127.0,0.112741]
[1641894595052,0.35577476,42128.0,42127.0,0.112741]
[1641894595500,0.35577476,42128.0,42127.0,0.123741]
[1641894596904,0.35577476,42128.0,42127.0,0.253741]
[1641894597303,0.35577476,42128.0,42127.0,0.242741]
[1641894597503,0.36477476,42128.0,42127.0,0.253741]
[1641894597704,0.009,42128.0,42127.0,0.253741]
[1641894597906,0.009,42128.0,42127.0,0.303741]
[1641894598107,0.009,42128.0,42127.0,0.676826]
[1641894598308,0.009,42128.0,42127.0,0.93277823]
[1641894598614,0.009,42128.0,42127.0,1.03277823]
[1641894598808,0.00080608,42130.0,42128.0,0.03559533]
[1641894599008,0.00080608,42130.0,42129.0,0.482413]
[1641894599440,0.059325,42131.0,42129.0,0.482413]
[1641894599644,0.059325,42131.0,42129.0,0.162726]
[1641894599841,0.059325,42131.0,42129.0,0.50575148]
[1641894600042,0.00080606,42132.0,42130.0,0.03559941]
[1641894600241,0.00080606,42132.0,42131.0,0.373085]
[1641894600446,0.37389106,42132.0,42127.0,0.13]
[1641894600648,0.05934,42131.0,42129.0,0.053399]
[1641894600942,0.373085,42130.0,42129.0,0.053399]
[1641894601146,0.05934,42131.0,42129.0,0.053399]
[1641894601345,0.05934,42131.0,42129.0,0.112731]
[1641894601543,0.003,42130.0,42129.0,0.112731]
[1641894601945,1.0506,42130.0,42127.0,0.13]
[1641894602148,0.373085,42129.0,42127.0,0.13]
[1641894602347,1.2476,42128.0,42127.0,0.13]
[1641894602544,1.620685,42128.0,42127.0,0.13]
[1641894602743,1.86906558,42128.0,42127.0,0.13]
[1641894602994,2.30129432,42128.0,42127.0,0.13]
[1641894603594,2.31129432,42128.0,42127.0,0.13]
[1641894604796,2.30129432,42128.0,42127.0,0.13]
[1641894605198,0.66906558,42128.0,42127.0,0.13]
[1641894605399,0.66906558,42128.0,42127.0,0.18]
[1641894605598,0.68406558,42128.0,42127.0,0.23]
[1641894606498,0.435685,42128.0,42127.0,0.23]
[1641894606757,0.0476,42128.0,42127.0,0.23]
[1641894607158,0.37491196,42128.0,42127.0,0.23]
[1641894607455,0.38191196,42128.0,42127.0,0.82046511]
[1641894607865,0.38191196,42128.0,42127.0,0.23]
[1641894608057,0.0546,42128.0,42127.0,0.23]
[1641894608861,0.0476,42128.0,42127.0,0.23]
[1641894609057,0.37373791,42128.0,42127.0,0.23]
[1641894609458,0.37373791,42128.0,42127.0,1.18660105]
[1641894609658,0.38373791,42128.0,42127.0,1.18660105]
[1641894609959,0.38373791,42128.0,42127.0,0.1]
[1641894610158,0.38373791,42128.0,42126.0,0.64566541]
[1641894610391,0.87355584,42127.0,42126.0,0.69566541]
[1641894610591,0.87355584,42127.0,42126.0,0.1]
[1641894610592,0.92115584,42127.0,42126.0,0.1]
[1641894610791,1.29424084,42127.0,42122.0,0.00129269]
[1641894610992,0.432432,42126.0,42122.0,0.03560696]
[1641894611194,0.0476,42125.0,42122.0,0.03560696]
[1641894611398,0.33745758,42124.0,42122.0,0.03560696]
[1641894611595,0.33745758,42124.0,42122.0,0.08560696]
[1641894612094,0.33745758,42124.0,42122.0,0.14495196]
[1641894612095,0.80850531,42124.0,42122.0,0.14495196]
[1641894612296,0.32766111,42123.0,42122.0,0.14495196]
[1641894612696,0.32766111,42123.0,42122.0,0.05]
[1641894612897,0.32766111,42123.0,42120.0,0.03560895]
[1641894613498,0.73081533,42123.0,42119.0,0.1]
[1641894613700,0.420685,42122.0,42118.0,0.00043506]
[1641894613901,0.420685,42122.0,42113.0,0.03561545]
[1641894614150,0.25680949,42116.0,42113.0,0.03561545]
[1641894614346,0.40382482,42115.0,42113.0,0.03561545]
[1641894614546,0.32669666,42114.0,42113.0,0.03561545]
[1641894614747,0.0476,42114.0,42113.0,0.03561545]
[1641894615048,0.118696,42120.0,42113.0,0.40870045]
[1641894615248,0.2948,42122.0,42115.0,0.03560696]
[1641894615447,0.2948,42122.0,42113.0,0.1]
[1641894615647,0.006,42120.0,42117.0,0.34494049]
[1641894615849,0.006,42120.0,42117.0,0.40428649]
[1641894616049,0.006,42120.0,42117.0,0.159346]
[1641894616248,0.491789,42119.0,42117.0,0.1]
[1641894616453,0.0476,42118.0,42117.0,0.05]
[1641894616650,0.420685,42118.0,42116.0,0.00055706]
[1641894617050,0.420685,42118.0,42117.0,0.24]
[1641894617250,0.420685,42118.0,42117.0,0.29]
[1641894617450,0.420685,42118.0,42117.0,0.34]
[1641894617650,0.426685,42118.0,42117.0,0.34]
[1641894618795,0.4205248,42118.0,42117.0,0.34]
[1641894619596,0.4265248,42118.0,42117.0,0.34]
[1641894620796,0.4205248,42118.0,42117.0,0.29]
[1641894621656,0.4265248,42118.0,42117.0,0.29]
[1641894621848,0.4265248,42118.0,42117.0,0.34]
[1641894622950,0.4205248,42118.0,42117.0,0.34]
[1641894623649,0.4255248,42118.0,42117.0,0.34]
[1641894624549,0.4255248,42118.0,42117.0,0.29]
[1641894625599,0.4265248,42118.0,42117.0,0.34]
[1641894626001,0.0534398,42118.0,42117.0,0.34]
[1641894626804,0.0374398,42118.0,42117.0,0.34]
[1641894627602,0.4255248,42118.0,42117.0,0.348]
[1641894628305,0.0524398,42118.0,42117.0,0.348]
[1641894628904,0.0524398,42118.0,42117.0,0.34]
[1641894628905,0.0374398,42118.0,42117.0,0.34]
[1641894629744,0.0524398,42118.0,42117.0,0.348]
[1641894630844,0.0524398,42118.0,42117.0,0.34]
[1641894631045,0.0374398,42118.0,42117.0,0.34]
[1641894631646,0.0374398,42118.0,42115.0,0.00040259]
[1641894631647,0.0524398,42118.0,42115.0,0.00040259]
[1641894631852,0.1231598,42118.0,42113.0,0.59566541]
[1641894632046,0.1231598,42118.0,42115.0,0.00044394]
[1641894632047,0.1825258,42118.0,42115.0,0.00044394]
[1641894632248,0.373085,42117.0,42115.0,0.00044394]
[1641894632448,0.0476,42116.0,42115.0,0.00044394]
[1641894632649,0.95409105,42116.0,42115.0,0.00044394]
[1641894632897,0.38886397,42109.0,42108.0,0.59566541]
[1641894633099,0.71361191,42109.0,42108.0,0.59566541]
[1641894633301,0.71361191,42109.0,42108.0,0.69566541]
[1641894633500,0.71361191,42109.0,42108.0,0.1]
[1641894633799,0.72061191,42109.0,42108.0,0.143]
[1641894633999,0.72061191,42109.0,42108.0,0.093]
[1641894635000,0.71361191,42109.0,42107.0,0.69566541]
[1641894635602,0.72161191,42109.0,42107.0,0.73666541]
[1641894635802,0.72161191,42109.0,42107.0,0.141]
[1641894636845,0.32946462,42108.0,42107.0,0.1]
[1641894637048,0.32946462,42108.0,42107.0,0.05]
[1641894637244,0.32946462,42108.0,42107.0,0.29]
[1641894637445,0.32917886,42108.0,42107.0,0.29]
[1641894637646,0.33517886,42108.0,42107.0,0.38544341]
[1641894638047,0.38277886,42108.0,42107.0,0.38544341]
[1641894638848,0.38277886,42108.0,42107.0,0.93510882]
[1641894639046,0.37677886,42108.0,42107.0,0.93510882]
[1641894639247,0.37677886,42108.0,42107.0,0.33944341]
[1641894639650,0.37877886,42108.0,42107.0,0.90510882]
[1641894640248,0.37877886,42108.0,42107.0,0.30944341]
[1641894640896,0.0476,42108.0,42107.0,0.28944341]
[1641894641697,0.0506,42108.0,42107.0,0.31544341]
[1641894642798,0.39894289,42108.0,42107.0,0.31544341]
[1641894643399,0.39894289,42108.0,42107.0,0.36544341]
[1641894643601,0.39594289,42108.0,42107.0,0.33944341]
[1641894643799,0.40594289,42108.0,42107.0,0.94710882]
[1641894644258,0.40594289,42108.0,42107.0,0.35144341]
[1641894645058,0.39594289,42108.0,42107.0,0.33944341]
[1641894645658,0.40594289,42108.0,42107.0,0.35044341]
[1641894646558,0.40594289,42108.0,42107.0,0.30044341]
[1641894646959,0.39594289,42108.0,42107.0,0.28944341]
[1641894647161,0.0476,42108.0,42107.0,0.28944341]
[1641894647463,0.0476,42108.0,42107.0,0.71252841]
[1641894647660,0.0476,42108.0,42107.0,0.34444341]
[1641894647661,0.36129118,42108.0,42107.0,0.34444341]
[1641894648097,0.36129118,42108.0,42107.0,0.71752841]
[1641894648798,0.36129118,42108.0,42107.0,0.34444341]
[1641894648998,0.35929118,42108.0,42107.0,0.33944341]
[1641894649598,0.35929118,42108.0,42107.0,0.28944341]
[1641894649799,0.36429118,42108.0,42107.0,0.32144341]
[1641894650001,0.36429118,42108.0,42107.0,0.69452841]
[1641894651001,0.35929118,42108.0,42107.0,0.66252841]
[1641894651745,0.36929118,42108.0,42107.0,0.67752841]
[1641894653044,0.0576,42108.0,42107.0,0.67752841]
[1641894653246,0.0476,42108.0,42107.0,0.66252841]
[1641894653645,0.0476,42108.0,42107.0,0.67852841]
[1641894653847,0.0576,42108.0,42107.0,0.67852841]
[1641894654648,0.37371435,42108.0,42107.0,0.30544341]
[1641894655048,0.0576,42108.0,42107.0,0.30544341]
[1641894655253,0.0476,42108.0,42107.0,0.28944341]
[1641894655494,0.0476,42108.0,42107.0,0.28703341]
[1641894655694,0.0526,42108.0,42107.0,0.31503341]
[1641894656095,0.05231417,42108.0,42107.0,0.31503341]
[1641894656998,0.3837549,42108.0,42107.0,0.31503341]
[1641894657198,0.3787549,42108.0,42107.0,0.28703341]
[1641894657599,0.04731417,42108.0,42107.0,0.28703341]
[1641894657801,0.05231417,42108.0,42107.0,0.31803341]
[1641894659152,0.04731417,42108.0,42107.0,0.28703341]
[1641894659746,0.05731417,42108.0,42107.0,0.29703341]
[1641894661550,0.04731417,42108.0,42107.0,0.28703341]
[1641894661750,0.06431417,42108.0,42107.0,0.29503341]
[1641894662750,0.06431417,42108.0,42107.0,0.66811841]
[1641894663197,0.04731417,42108.0,42107.0,0.66011841]
[1641894663497,0.04731417,42108.0,42107.0,0.28703341]
[1641894663899,0.07531417,42108.0,42107.0,0.29303341]
[1641894664299,0.07531417,42108.0,42107.0,0.56017004]
[1641894664500,0.07531417,42108.0,42107.0,0.55997004]
[1641894664799,0.07531417,42108.0,42107.0,0.60997004]
[1641894665200,0.04731417,42108.0,42107.0,0.60397004]
[1641894665602,0.04731417,42108.0,42107.0,0.97705504]
[1641894665800,0.05431417,42108.0,42107.0,0.98705504]
[1641894666000,0.02890803,42108.0,42107.0,0.98705504]
[1641894667048,0.02190803,42108.0,42107.0,0.97705504]
[1641894667847,0.02790803,42108.0,42107.0,1.00305504]
[1641894669050,0.02190803,42108.0,42107.0,0.97705504]
[1641894669751,0.02590803,42108.0,42107.0,0.99605504]
[1641894669951,0.02590803,42108.0,42107.0,0.57297004]
[1641894670152,0.41133633,42108.0,42107.0,0.52613663]
[1641894671497,0.76194951,42108.0,42107.0,0.57613663]
[1641894671696,0.75794951,42108.0,42107.0,0.55713663]
[1641894671896,0.76394951,42108.0,42107.0,0.58213663]
[1641894672297,0.5254586,42108.0,42107.0,0.58213663]
[1641894672697,0.02790803,42108.0,42107.0,0.58213663]
[1641894673097,0.02190803,42108.0,42107.0,0.55713663]
[1641894673899,0.02390803,42108.0,42107.0,0.59513663]
[1641894674349,0.02390803,42108.0,42107.0,0.96822163]
[1641894674549,0.02390803,42108.0,42107.0,1.01822163]
[1641894675150,0.02190803,42108.0,42107.0,0.98022163]
[1641894675750,0.02190803,42108.0,42107.0,0.99822163]
[1641894676050,0.004,42108.0,42107.0,0.99822163]
[1641894676449,0.059359,42112.0,42107.0,0.99822163]
[1641894676650,0.11872,42115.0,42109.0,0.059359]
[1641894676849,0.11872,42115.0,42111.0,0.03561633]
[1641894677049,0.11872,42115.0,42111.0,0.05]
[1641894677449,0.11872,42115.0,42113.0,0.69563075]
[1641894677897,0.13772,42115.0,42113.0,0.79563075]
[1641894678098,0.13772,42115.0,42113.0,1.06276738]
[1641894678099,0.12472,42115.0,42113.0,1.06276738]
[1641894678499,0.12472,42115.0,42113.0,0.79563075]
[1641894679201,0.10572,42115.0,42113.0,0.79563075]
[1641894679403,0.165089,42115.0,42113.0,0.69563075]
[1641894679602,0.165089,42115.0,42113.0,0.74563075]
[1641894679802,0.179089,42115.0,42113.0,0.74563075]
[1641894680003,0.179089,42115.0,42113.0,0.64573109]
[1641894681005,0.165089,42115.0,42113.0,0.64573109]
[1641894681507,0.165089,42115.0,42114.0,0.59573109]
[1641894681750,0.10572,42115.0,42114.0,0.59573109]
[1641894681949,0.11672,42115.0,42114.0,0.59573109]
[1641894682549,0.11672,42115.0,42113.0,0.64573109]
[1641894683050,0.10572,42115.0,42114.0,0.59573109]
[1641894683850,0.46772,42115.0,42114.0,0.59573109]
[1641894684054,0.56772,42115.0,42114.0,0.59573109]
[1641894684252,0.940805,42115.0,42113.0,0.59573109]
[1641894684454,0.432456,42114.0,42113.0,0.59573109]
[1641894684651,0.532456,42114.0,42113.0,0.59573109]
[1641894684853,0.532456,42114.0,42112.0,0.05045515]
[1641894685153,0.90877591,42114.0,42112.0,0.00045515]
[1641894685798,0.92277591,42114.0,42112.0,0.00045515]
[1641894686000,0.92277591,42114.0,42111.0,0.00127409]
[1641894686001,0.014,42114.0,42111.0,0.00127409]
[1641894686201,0.059367,42113.0,42112.0,0.373085]
[1641894686501,0.059367,42113.0,42111.0,0.64746034]
[1641894686703,0.059367,42113.0,42112.0,0.423085]
[1641894686902,0.059367,42113.0,42112.0,0.482446]
[1641894687103,0.059367,42113.0,42112.0,1.44219047]
[1641894687302,0.059367,42113.0,42112.0,1.47780706]
[1641894687502,0.059367,42113.0,42112.0,0.78217631]
[1641894687702,0.059367,42113.0,42112.0,0.51806259]
[1641894687902,0.059367,42113.0,42112.0,0.51906259]
[1641894687903,0.097367,42113.0,42112.0,0.51906259]
[1641894688103,0.038,42113.0,42112.0,0.51906259]
[1641894688506,0.038,42113.0,42112.0,0.78317631]
[1641894689252,0.059359,42115.0,42113.0,0.05]
[1641894689649,0.059359,42115.0,42113.0,0.08561771]
[1641894689849,0.077359,42115.0,42113.0,0.08561771]
[1641894690249,0.077359,42115.0,42114.0,0.95833725]
[1641894690448,0.018,42115.0,42114.0,0.95833725]
[1641894690951,0.768,42115.0,42114.0,0.95833725]
[1641894691150,0.8976,42115.0,42114.0,0.95833725]
[1641894691350,0.8976,42115.0,42114.0,0.69422353]
[1641894691549,1.270685,42115.0,42114.0,0.59540236]
[1641894691752,1.270685,42115.0,42112.0,0.69469656]
[1641894691753,0.66518114,42115.0,42112.0,0.69469656]
[1641894691949,0.30509614,42115.0,42109.0,0.5961763]
[1641894692148,0.30509614,42115.0,42112.0,0.00046785]
[1641894692349,0.373085,42114.0,42112.0,0.00046785]
[1641894692552,0.50843716,42113.0,42112.0,0.00046785]
[1641894692749,1.10393716,42113.0,42112.0,0.00046785]
[1641894693003,1.20393716,42113.0,42112.0,0.00046785]
[1641894693203,1.20393716,42113.0,42107.0,0.24]
[1641894693204,0.059382,42111.0,42107.0,0.24]
[1641894693404,0.059382,42111.0,42110.0,0.00046907]
[1641894693405,0.80001889,42111.0,42110.0,0.00046907]
[1641894693606,1.31600489,42111.0,42110.0,0.00046907]
[1641894693805,1.32700489,42111.0,42110.0,0.00046907]
[1641894694409,0.33109198,42110.0,42107.0,0.34]
[1641894694606,0.0476,42109.0,42108.0,0.0004691]
[1641894695006,0.13116676,42109.0,42108.0,0.0004691]
[1641894695206,0.0476,42109.0,42108.0,0.0004691]
[1641894695605,0.13092055,42109.0,42107.0,0.34]
[1641894695806,0.43395182,42108.0,42107.0,0.34]
[1641894696006,0.43395182,42108.0,42106.0,0.0004703]
[1641894696007,0.22092182,42108.0,42106.0,0.0004703]
[1641894696208,0.65489,42107.0,42106.0,0.0004703]
[1641894696408,0.70249,42107.0,42106.0,0.0004703]
[1641894696657,1.43830193,42107.0,42104.0,0.69422353]
[1641894696853,0.5955,42105.0,42104.0,0.69469358]
[1641894697057,1.12958792,42105.0,42104.0,0.00047005]
[1641894697454,0.80337449,42101.0,42098.0,0.69422353]
[1641894697754,0.80337449,42101.0,42096.0,0.00086317]
[1641894697755,0.0476,42100.0,42097.0,0.69422353]
[1641894698153,0.44562487,42100.0,42097.0,0.69422353]
[1641894698656,1.14112487,42100.0,42096.0,0.6950867]
[1641894699153,1.14237225,42100.0,42099.0,6.19527424]
[1641894699956,1.15337225,42100.0,42099.0,6.43527424]
[1641894700403,0.75534738,42100.0,42099.0,6.43527424]
[1641894700607,1.14569054,42100.0,42099.0,6.43527424]
[1641894700805,1.44569054,42100.0,42099.0,6.19527424]
[1641894701005,1.34569054,42100.0,42099.0,6.19527424]
[1641894701204,1.33469054,42100.0,42099.0,6.19527424]
[1641894701405,0.94434738,42100.0,42099.0,6.19527424]
[1641894702010,1.37413395,42100.0,42099.0,6.19527424]
[1641894702810,1.97980939,42100.0,42099.0,6.19527424]
[1641894703108,1.96980939,42100.0,42099.0,6.19527424]
[1641894703310,1.36413395,42100.0,42099.0,6.19527424]
[1641894704011,1.37413395,42100.0,42099.0,6.19527424]
[1641894704254,1.97980939,42100.0,42099.0,6.19527424]
[1641894704855,1.37413395,42100.0,42099.0,6.19527424]
[1641894705853,1.38413395,42100.0,42099.0,6.19527424]
[1641894707254,1.36413395,42100.0,42099.0,6.19527424]
[1641894707898,1.37413395,42100.0,42099.0,6.19527424]
[1641894709199,1.36413395,42100.0,42099.0,6.19527424]
[1641894710006,1.37413395,42100.0,42099.0,6.19527424]
[1641894710802,1.97980939,42100.0,42099.0,6.19527424]
[1641894711202,1.36413395,42100.0,42099.0,6.19527424]
[1641894711853,0.94434738,42100.0,42099.0,6.19527424]
[1641894712053,0.95434738,42100.0,42099.0,6.19527424]
[1641894713255,0.94434738,42100.0,42099.0,6.19527424]
[1641894713654,1.293836,42100.0,42099.0,6.19527424]
[1641894714055,1.303836,42100.0,42099.0,6.19527424]
[1641894715506,1.293836,42100.0,42099.0,6.19527424]
[1641894715907,1.304836,42100.0,42099.0,6.19527424]
[1641894716305,1.304836,42100.0,42099.0,5.71999424]
[1641894716507,2.746069,42100.0,42099.0,5.36055945]
[1641894716807,2.746069,42100.0,42099.0,4.88527045]
[1641894717007,3.119154,42100.0,42099.0,4.88527045]
[1641894717207,3.108154,42100.0,42099.0,4.40996845]
[1641894718010,3.118154,42100.0,42099.0,4.40996845]
[1641894719254,1.855154,42100.0,42099.0,4.40996845]
[1641894719855,1.845154,42100.0,42099.0,4.40996845]
[1641894720055,1.856154,42100.0,42099.0,4.40996845]
[1641894720458,3.119154,42100.0,42099.0,3.93465345]
[1641894721056,3.119154,42100.0,42099.0,3.89517212]
[1641894721457,3.108154,42100.0,42099.0,3.89517212]
[1641894722158,3.118154,42100.0,42099.0,3.89517212]
[1641894723106,3.11920201,42100.0,42099.0,3.89517212]
[1641894723902,3.10820201,42100.0,42099.0,3.89517212]
[1641894724104,3.11920201,42100.0,42099.0,3.89517212]
[1641894724703,1.85620201,42100.0,42099.0,3.89517212]
[1641894725303,1.84520201,42100.0,42099.0,3.89517212]
[1641894726104,1.85520201,42100.0,42099.0,3.89517212]
[1641894726955,0.61021339,42100.0,42099.0,3.94517212]
[1641894727259,0.0476,42100.0,42099.0,3.94517212]
[1641894727852,0.37129057,42100.0,42099.0,3.94517212]
[1641894728053,0.38229057,42100.0,42099.0,3.94517212]
[1641894728256,0.38199748,42100.0,42099.0,3.94517212]
[1641894728654,0.68199748,42100.0,42099.0,3.89517212]
[1641894729354,1.3476,42100.0,42099.0,3.89517212]
[1641894729653,1.720685,42100.0,42099.0,3.89517212]
[1641894729855,1.32636044,42100.0,42099.0,3.89517212]
[1641894730056,1.13836044,42100.0,42099.0,3.89517212]
[1641894730505,0.432685,42100.0,42099.0,3.89517212]
[1641894730703,0.432685,42100.0,42099.0,3.94517212]
[1641894730905,0.532685,42100.0,42099.0,3.89517212]
[1641894731111,0.632685,42100.0,42099.0,3.89517212]
[1641894731305,1.470685,42100.0,42099.0,4.13517212]
[1641894731604,1.57194636,42100.0,42099.0,4.13517212]
[1641894731804,2.1776218,42100.0,42099.0,4.13517212]
[1641894732002,2.1876218,42100.0,42099.0,4.13517212]
[1641894732603,1.3376218,42100.0,42099.0,3.16540443]
[1641894732805,2.9186977,42100.0,42099.0,1.33027395]
[1641894733006,2.9186977,42100.0,42099.0,0.55101646]
[1641894733204,2.9186977,42100.0,42099.0,0.07569046]
[1641894733409,2.89852226,42100.0,42097.0,0.00043013]